[Event "Titled Tuesday Blitz July 11 Early 2023"]
[White "Hernandez Bermudez, Ulises Eduardo"]
[Black "Szczurek, Krzysztof"]
[WhiteFideId "3902510"]
[BlackFideId "1185489"]
[WhiteElo "2163"]
[BlackElo "2469"]
[Result "0-1"]
[Round "2"]
[TimeControl "180+2"]
[Date "2023.07.11"]
[WhiteClock "0:00:06"]
[BlackClock "0:00:19"]
[Board "202"]

1. e4 {[%clk 0:02:58]}  c5 {[%clk 0:02:59]} 2. c3 {[%clk 0:02:58]}  d5 {[%clk 0:02:57]} 3. exd5 {[%clk 0:02:58]}  Qxd5 {[%clk 0:02:58]} 4. d4 {[%clk 0:02:58]}  Nc6 {[%clk 0:02:58]} 5. Nf3 {[%clk 0:02:58]}  Nf6 {[%clk 0:02:42]} 6. Be2 {[%clk 0:02:56]}  e6 {[%clk 0:02:40]} 7. O-O {[%clk 0:02:55]}  cxd4 {[%clk 0:02:41]} 8. cxd4 {[%clk 0:02:55]}  Be7 {[%clk 0:02:41]} 9. Nc3 {[%clk 0:02:55]}  Qd8 {[%clk 0:02:40]} 10. Bf4 {[%clk 0:02:51]}  O-O {[%clk 0:02:33]} 11. Rc1 {[%clk 0:02:43]}  a6 {[%clk 0:02:27]} 12. Bd3 {[%clk 0:02:12]}  Nb4 {[%clk 0:02:21]} 13. Bb1 {[%clk 0:02:12]}  Nbd5 {[%clk 0:02:21]} 14. Be5 {[%clk 0:02:08]}  Bd7 {[%clk 0:02:16]} 15. Qd3 {[%clk 0:02:01]}  g6 {[%clk 0:02:10]} 16. Rfd1 {[%clk 0:01:37]}  Bc6 {[%clk 0:02:01]} 17. Ng5 {[%clk 0:01:20]}  Nh5 {[%clk 0:00:53]} 18. Nge4 {[%clk 0:01:07]}  f6 {[%clk 0:00:29]} 19. Bg3 {[%clk 0:00:52]}  f5 {[%clk 0:00:30]} 20. Nc5 {[%clk 0:00:25]}  Bxc5 {[%clk 0:00:29]} 21. dxc5 {[%clk 0:00:26]}  f4 {[%clk 0:00:28]} 22. Qe4 {[%clk 0:00:17]}  Qf6 {[%clk 0:00:21]} 23. Nxd5 {[%clk 0:00:14]}  exd5 {[%clk 0:00:20]} 24. Qd3 {[%clk 0:00:10]}  fxg3 {[%clk 0:00:20]} 25. fxg3 {[%clk 0:00:09]}  d4 {[%clk 0:00:19]} 26. Kh1 {[%clk 0:00:08]}  Rad8 {[%clk 0:00:18]} 27. a3 {[%clk 0:00:06]}  Qe5 {[%clk 0:00:18]} 28. Ba2+ {[%clk 0:00:07]}  Kh8 {[%clk 0:00:18]} 29. Re1 {[%clk 0:00:06]}  Qf6 {[%clk 0:00:17]} 30. Qd2 {[%clk 0:00:06]}  Ng7 {[%clk 0:00:17]} 31. h3 {[%clk 0:00:06]}  Nf5 {[%clk 0:00:17]} 32. Kh2 {[%clk 0:00:06]}  Ne3 {[%clk 0:00:17]} 33. Re2 {[%clk 0:00:04]}  Qg5 {[%clk 0:00:15]} 34. Qd3 {[%clk 0:00:03]}  Nf5 {[%clk 0:00:14]} 35. Rce1 {[%clk 0:00:04]}  Qf6 {[%clk 0:00:14]} 36. Re5 {[%clk 0:00:04]}  Ne3 {[%clk 0:00:14]} 37. R1xe3 {[%clk 0:00:04]}  dxe3 {[%clk 0:00:15]} 38. Qxe3 {[%clk 0:00:04]}  Rde8 {[%clk 0:00:15]} 39. Rxe8 {[%clk 0:00:04]}  Rxe8 {[%clk 0:00:16]} 40. Qc3 {[%clk 0:00:04]}  Qxc3 {[%clk 0:00:16]} 41. bxc3 {[%clk 0:00:05]}  Re2 {[%clk 0:00:16]} 42. Bc4 {[%clk 0:00:06]}  Rxg2+ {[%clk 0:00:16]} 43. Kh1 {[%clk 0:00:06]}  Rxg3+ {[%clk 0:00:16]} 44. Kh2 {[%clk 0:00:06]}  Rg2+ {[%clk 0:00:17]} 45. Kh1 {[%clk 0:00:07]}  Rc2+ {[%clk 0:00:18]} 46. Kg1 {[%clk 0:00:06]}  Rxc3 {[%clk 0:00:18]} 47. Be6 {[%clk 0:00:06]}  Rxc5 {[%clk 0:00:19]} 0-1


[Site "https://www.chess.com"]

[Event "Titled Tuesday Blitz July 11 Early 2023"]
[White "Balla, Tamas-Kristof"]
[Black "Hartikainen, Jarmo"]
[WhiteFideId "1208497"]
[BlackFideId "503134"]
[WhiteElo "2468"]
[BlackElo "2158"]
[Result "1-0"]
[Round "2"]
[TimeControl "180+2"]
[Date "2023.07.11"]
[WhiteClock "0:00:29"]
[BlackClock "0:00:36"]
[Board "203"]

1. e4 {[%clk 0:03:00]}  c5 {[%clk 0:02:59]} 2. c3 {[%clk 0:02:56]}  d5 {[%clk 0:02:58]} 3. exd5 {[%clk 0:02:56]}  Qxd5 {[%clk 0:02:59]} 4. d4 {[%clk 0:02:57]}  cxd4 {[%clk 0:02:59]} 5. cxd4 {[%clk 0:02:56]}  Nc6 {[%clk 0:03:00]} 6. Nf3 {[%clk 0:02:55]}  Bg4 {[%clk 0:02:59]} 7. Nc3 {[%clk 0:02:51]}  Bxf3 {[%clk 0:02:58]} 8. gxf3 {[%clk 0:02:52]}  Qxd4 {[%clk 0:02:58]} 9. Qxd4 {[%clk 0:02:53]}  Nxd4 {[%clk 0:02:58]} 10. Nb5 {[%clk 0:02:53]}  Nc2+ {[%clk 0:02:56]} 11. Kd1 {[%clk 0:02:53]}  Nxa1 {[%clk 0:02:57]} 12. Nc7+ {[%clk 0:02:51]}  Kd8 {[%clk 0:02:56]} 13. Nxa8 {[%clk 0:02:52]}  Nf6 {[%clk 0:02:52]} 14. Be3 {[%clk 0:02:43]}  b6 {[%clk 0:02:51]} 15. Kc1 {[%clk 0:02:26]}  Nd5 {[%clk 0:02:21]} 16. Ba6 {[%clk 0:02:15]}  e6 {[%clk 0:01:59]} 17. Kb1 {[%clk 0:02:08]}  Bd6 {[%clk 0:01:52]} 18. Rc1 {[%clk 0:01:51]}  Ke7 {[%clk 0:01:39]} 19. Rc8 {[%clk 0:01:22]}  Rxc8 {[%clk 0:01:36]} 20. Bxc8 {[%clk 0:01:23]}  Nxe3 {[%clk 0:01:28]} 21. fxe3 {[%clk 0:01:19]}  Bxh2 {[%clk 0:01:28]} 22. Kxa1 {[%clk 0:01:17]}  h5 {[%clk 0:01:27]} 23. f4 {[%clk 0:01:05]}  Bg1 {[%clk 0:01:20]} 24. f5 {[%clk 0:00:46]}  Bxe3 {[%clk 0:01:13]} 25. fxe6 {[%clk 0:00:45]}  fxe6 {[%clk 0:01:11]} 26. Nc7 {[%clk 0:00:45]}  g5 {[%clk 0:01:05]} 27. Bxe6 {[%clk 0:00:43]}  g4 {[%clk 0:01:03]} 28. Bxg4 {[%clk 0:00:41]}  hxg4 {[%clk 0:01:03]} 29. Nd5+ {[%clk 0:00:41]}  Kd6 {[%clk 0:00:58]} 30. Nxe3 {[%clk 0:00:42]}  Kc5 {[%clk 0:00:48]} 31. Nxg4 {[%clk 0:00:41]}  Kc4 {[%clk 0:00:49]} 32. Ne3+ {[%clk 0:00:41]}  Kd3 {[%clk 0:00:49]} 33. Nd5 {[%clk 0:00:41]}  Kc2 {[%clk 0:00:48]} 34. a3 {[%clk 0:00:37]}  b5 {[%clk 0:00:46]} 35. Ka2 {[%clk 0:00:35]}  a5 {[%clk 0:00:45]} 36. Nc3 {[%clk 0:00:28]}  b4 {[%clk 0:00:44]} 37. axb4 {[%clk 0:00:28]}  axb4 {[%clk 0:00:44]} 38. Nd5 {[%clk 0:00:29]}  b3+ {[%clk 0:00:36]} 39. Ka3 {[%clk 0:00:29]} 1-0


[Site "https://www.chess.com"]

[Event "Titled Tuesday Blitz July 11 Early 2023"]
[White "Kev4444444444"]
[Black "Rodriguez Fontecha, Marcos"]
[BlackFideId "2256576"]
[WhiteElo "2155"]
[BlackElo "2467"]
[Result "1-0"]
[Round "2"]
[TimeControl "180+2"]
[Date "2023.07.11"]
[WhiteClock "0:00:13"]
[BlackClock "0:00:00"]
[Board "204"]

1. d4 {[%clk 0:03:00]}  f5 {[%clk 0:02:58]} 2. Nf3 {[%clk 0:02:59]}  Nf6 {[%clk 0:02:58]} 3. c4 {[%clk 0:02:59]}  g6 {[%clk 0:02:58]} 4. b3 {[%clk 0:02:59]}  Bg7 {[%clk 0:02:59]} 5. Bb2 {[%clk 0:02:59]}  d6 {[%clk 0:02:59]} 6. e3 {[%clk 0:02:57]}  O-O {[%clk 0:03:00]} 7. Nbd2 {[%clk 0:02:56]}  c6 {[%clk 0:02:58]} 8. Bd3 {[%clk 0:02:47]}  Qc7 {[%clk 0:02:58]} 9. O-O {[%clk 0:02:43]}  a5 {[%clk 0:02:53]} 10. Qe2 {[%clk 0:02:17]}  Nh5 {[%clk 0:02:39]} 11. g3 {[%clk 0:02:04]}  e5 {[%clk 0:02:35]} 12. e4 {[%clk 0:01:56]}  f4 {[%clk 0:02:33]} 13. dxe5 {[%clk 0:01:53]}  dxe5 {[%clk 0:02:32]} 14. Kg2 {[%clk 0:01:15]}  Na6 {[%clk 0:02:24]} 15. c5 {[%clk 0:01:06]}  h6 {[%clk 0:01:22]} 16. Rac1 {[%clk 0:01:00]}  Be6 {[%clk 0:01:18]} 17. h3 {[%clk 0:00:59]}  Rad8 {[%clk 0:01:06]} 18. g4 {[%clk 0:00:57]}  Qd7 {[%clk 0:01:00]} 19. Bc4 {[%clk 0:00:54]}  Nf6 {[%clk 0:00:40]} 20. Nxe5 {[%clk 0:00:46]}  Qe8 {[%clk 0:00:32]} 21. Nxg6 {[%clk 0:00:40]}  Rf7 {[%clk 0:00:26]} 22. Ne5 {[%clk 0:00:37]}  Re7 {[%clk 0:00:25]} 23. Ndf3 {[%clk 0:00:33]}  Kh7 {[%clk 0:00:20]} 24. Rfd1 {[%clk 0:00:33]}  Rxd1 {[%clk 0:00:19]} 25. Rxd1 {[%clk 0:00:33]}  Bxc4 {[%clk 0:00:15]} 26. Qxc4 {[%clk 0:00:33]}  Nc7 {[%clk 0:00:12]} 27. Rd6 {[%clk 0:00:28]}  Nb5 {[%clk 0:00:10]} 28. Rd2 {[%clk 0:00:24]}  Nd7 {[%clk 0:00:05]} 29. Nxd7 {[%clk 0:00:20]}  Rxd7 {[%clk 0:00:06]} 30. e5 {[%clk 0:00:14]}  Rxd2 {[%clk 0:00:03]} 31. Nxd2 {[%clk 0:00:15]}  Qd7 {[%clk 0:00:02]} 32. Qe4+ {[%clk 0:00:15]}  Kg8 {[%clk 0:00:02]} 33. Nf3 {[%clk 0:00:15]}  Qe6 {[%clk 0:00:02]} 34. Qxf4 {[%clk 0:00:15]}  Nc7 {[%clk 0:00:01]} 35. Qe4 {[%clk 0:00:13]}  Nd5 {[%clk 0:00:01]} 36. Bd4 {[%clk 0:00:13]}  Qf7 {[%clk 0:00:02]} 37. Qf5 {[%clk 0:00:13]}  Nf4+ {[%clk 0:00:02]} 38. Kh2 {[%clk 0:00:12]}  Qxf5 {[%clk 0:00:03]} 39. gxf5 {[%clk 0:00:12]}  Nd3 {[%clk 0:00:04]} 40. f6 {[%clk 0:00:13]}  Bf8 {[%clk 0:00:03]} 41. e6 {[%clk 0:00:13]}  Nxc5 {[%clk 0:00:03]} 42. e7 {[%clk 0:00:12]}  Bxe7 {[%clk 0:00:04]} 43. fxe7 {[%clk 0:00:13]}  Ne6 {[%clk 0:00:00]} 44. e8=Q+ {[%clk 0:00:13]} 1-0


[Site "https://www.chess.com"]

[Event "Titled Tuesday Blitz July 11 Early 2023"]
[White "Jimenez Jimenez, Leandro"]
[Black "Ramu, K."]
[WhiteFideId "6415253"]
[BlackFideId "5006171"]
[WhiteElo "2466"]
[BlackElo "2148"]
[Result "1-0"]
[Round "2"]
[TimeControl "180+2"]
[Date "2023.07.11"]
[WhiteClock "0:00:48"]
[BlackClock "0:00:09"]
[Board "206"]

1. d4 {[%clk 0:03:00]}  Nf6 {[%clk 0:02:59]} 2. c4 {[%clk 0:03:00]}  g6 {[%clk 0:02:58]} 3. Nc3 {[%clk 0:03:00]}  Bg7 {[%clk 0:02:57]} 4. e4 {[%clk 0:03:00]}  d6 {[%clk 0:02:58]} 5. f3 {[%clk 0:03:00]}  c5 {[%clk 0:02:57]} 6. Nge2 {[%clk 0:02:59]}  O-O {[%clk 0:02:51]} 7. Be3 {[%clk 0:02:58]}  Nc6 {[%clk 0:02:43]} 8. d5 {[%clk 0:02:55]}  Ne5 {[%clk 0:02:39]} 9. Ng3 {[%clk 0:02:56]}  h5 {[%clk 0:02:31]} 10. Be2 {[%clk 0:02:48]}  h4 {[%clk 0:02:17]} 11. Nf1 {[%clk 0:02:47]}  a6 {[%clk 0:02:06]} 12. Nd2 {[%clk 0:02:45]}  e6 {[%clk 0:01:55]} 13. a4 {[%clk 0:02:37]}  exd5 {[%clk 0:01:54]} 14. cxd5 {[%clk 0:02:37]}  Re8 {[%clk 0:01:50]} 15. O-O {[%clk 0:02:33]}  Rb8 {[%clk 0:01:45]} 16. a5 {[%clk 0:02:31]}  Kh7 {[%clk 0:01:39]} 17. h3 {[%clk 0:02:27]}  Qc7 {[%clk 0:01:20]} 18. Bg5 {[%clk 0:02:20]}  Bh6 {[%clk 0:01:16]} 19. Bxh4 {[%clk 0:02:17]}  Nh5 {[%clk 0:01:09]} 20. Nc4 {[%clk 0:02:06]}  Nxc4 {[%clk 0:00:48]} 21. Bxc4 {[%clk 0:02:05]}  Nf4 {[%clk 0:00:45]} 22. Ne2 {[%clk 0:02:04]}  g5 {[%clk 0:00:36]} 23. Bg3 {[%clk 0:01:51]}  b5 {[%clk 0:00:34]} 24. Bd3 {[%clk 0:01:41]}  c4 {[%clk 0:00:32]} 25. Bc2 {[%clk 0:01:38]}  Bd7 {[%clk 0:00:29]} 26. Qd2 {[%clk 0:01:21]}  Rg8 {[%clk 0:00:21]} 27. Nxf4 {[%clk 0:01:02]}  gxf4 {[%clk 0:00:20]} 28. Bxf4 {[%clk 0:01:03]}  Bxh3 {[%clk 0:00:19]} 29. e5+ {[%clk 0:01:00]}  Kh8 {[%clk 0:00:16]} 30. Rf2 {[%clk 0:00:58]}  Bf8 {[%clk 0:00:13]} 31. Bg5 {[%clk 0:00:49]}  dxe5 {[%clk 0:00:09]} 32. Bf6+ {[%clk 0:00:48]}  Bg7 {[%clk 0:00:09]} 33. Qh6# {[%clk 0:00:48]} 1-0


[Site "https://www.chess.com"]

[Event "Titled Tuesday Blitz July 11 Early 2023"]
[White "gueraumasague"]
[Black "HeinichessPY"]
[WhiteElo "2465"]
[BlackElo "2143"]
[Result "1-0"]
[Round "2"]
[TimeControl "180+2"]
[Date "2023.07.11"]
[WhiteClock "0:02:09"]
[BlackClock "0:00:16"]
[Board "207"]

1. e4 {[%clk 0:02:56]}  c5 {[%clk 0:02:58]} 2. Nc3 {[%clk 0:02:57]}  Nc6 {[%clk 0:02:54]} 3. Bb5 {[%clk 0:02:58]}  g6 {[%clk 0:02:54]} 4. Bxc6 {[%clk 0:02:58]}  dxc6 {[%clk 0:02:55]} 5. d3 {[%clk 0:02:58]}  Bg7 {[%clk 0:02:54]} 6. f4 {[%clk 0:02:59]}  Nf6 {[%clk 0:02:37]} 7. Nf3 {[%clk 0:02:58]}  O-O {[%clk 0:02:29]} 8. O-O {[%clk 0:02:58]}  Bg4 {[%clk 0:02:07]} 9. Qe1 {[%clk 0:02:59]}  Bxf3 {[%clk 0:02:03]} 10. Rxf3 {[%clk 0:02:59]}  Ng4 {[%clk 0:01:54]} 11. h3 {[%clk 0:02:49]}  Bd4+ {[%clk 0:01:45]} 12. Kh1 {[%clk 0:02:46]}  Nf6 {[%clk 0:01:40]} 13. Ne2 {[%clk 0:02:43]}  Nh5 {[%clk 0:01:36]} 14. g4 {[%clk 0:02:38]}  Ng7 {[%clk 0:01:32]} 15. c3 {[%clk 0:02:38]}  Bf6 {[%clk 0:01:16]} 16. g5 {[%clk 0:02:37]}  e5 {[%clk 0:01:14]} 17. gxf6 {[%clk 0:02:34]}  Qxf6 {[%clk 0:01:14]} 18. Qg3 {[%clk 0:02:34]}  Nh5 {[%clk 0:01:11]} 19. Qg5 {[%clk 0:02:33]}  Qd6 {[%clk 0:01:07]} 20. fxe5 {[%clk 0:02:31]}  Qd7 {[%clk 0:01:07]} 21. Nf4 {[%clk 0:02:23]}  Ng7 {[%clk 0:01:05]} 22. Be3 {[%clk 0:02:18]}  Rae8 {[%clk 0:01:05]} 23. Bxc5 {[%clk 0:02:17]}  Ne6 {[%clk 0:00:19]} 24. Nxe6 {[%clk 0:02:16]}  fxe6 {[%clk 0:00:19]} 25. Bxf8 {[%clk 0:02:12]}  Rxf8 {[%clk 0:00:19]} 26. Rxf8+ {[%clk 0:02:11]}  Kxf8 {[%clk 0:00:20]} 27. Rf1+ {[%clk 0:02:09]}  Kg8 {[%clk 0:00:16]} 28. Qf6 {[%clk 0:02:09]} 1-0


[Site "https://www.chess.com"]

[Event "Titled Tuesday Blitz July 11 Early 2023"]
[White "Jimenez Ruano, Adrian"]
[Black "Wesolowska, Hanna"]
[WhiteFideId "22276050"]
[BlackFideId "1104683"]
[WhiteElo "2462"]
[BlackElo "2142"]
[Result "0-1"]
[Round "2"]
[TimeControl "180+2"]
[Date "2023.07.11"]
[WhiteClock "0:00:17"]
[BlackClock "0:00:21"]
[Board "209"]

1. e4 {[%clk 0:02:58]}  c5 {[%clk 0:02:46]} 2. Nf3 {[%clk 0:02:57]}  d6 {[%clk 0:02:28]} 3. d4 {[%clk 0:02:57]}  cxd4 {[%clk 0:02:28]} 4. Nxd4 {[%clk 0:02:58]}  Nf6 {[%clk 0:02:27]} 5. Nc3 {[%clk 0:02:59]}  a6 {[%clk 0:02:27]} 6. Be3 {[%clk 0:02:41]}  e6 {[%clk 0:02:07]} 7. f3 {[%clk 0:02:37]}  b5 {[%clk 0:02:03]} 8. Qd2 {[%clk 0:02:36]}  Bb7 {[%clk 0:02:03]} 9. O-O-O {[%clk 0:02:31]}  Ke7 {[%clk 0:02:04]} 10. Be2 {[%clk 0:02:14]}  Ke8 {[%clk 0:02:03]} 11. Rhe1 {[%clk 0:02:14]}  Be7 {[%clk 0:02:04]} 12. Bf1 {[%clk 0:02:04]}  Qc7 {[%clk 0:02:04]} 13. Kb1 {[%clk 0:02:01]}  Nbd7 {[%clk 0:02:01]} 14. g4 {[%clk 0:01:50]}  h6 {[%clk 0:02:00]} 15. h4 {[%clk 0:01:30]}  Rc8 {[%clk 0:01:56]} 16. g5 {[%clk 0:01:28]}  hxg5 {[%clk 0:01:55]} 17. hxg5 {[%clk 0:01:29]}  Nh5 {[%clk 0:01:55]} 18. g6 {[%clk 0:01:29]}  e5 {[%clk 0:01:52]} 19. gxf7+ {[%clk 0:01:25]}  Kxf7 {[%clk 0:01:53]} 20. Nf5 {[%clk 0:01:26]}  g6 {[%clk 0:01:49]} 21. Nxd6+ {[%clk 0:01:09]}  Bxd6 {[%clk 0:01:46]} 22. Qxd6 {[%clk 0:01:10]}  Qxd6 {[%clk 0:01:46]} 23. Rxd6 {[%clk 0:01:11]}  Ndf6 {[%clk 0:01:41]} 24. Rb6 {[%clk 0:01:05]}  Rc7 {[%clk 0:01:37]} 25. a4 {[%clk 0:01:00]}  bxa4 {[%clk 0:01:32]} 26. Nxa4 {[%clk 0:01:01]}  Rhc8 {[%clk 0:01:32]} 27. Nc5 {[%clk 0:00:57]}  Bc6 {[%clk 0:01:22]} 28. Bc4+ {[%clk 0:00:57]}  Ke7 {[%clk 0:00:55]} 29. Nxa6 {[%clk 0:00:40]}  Rb7 {[%clk 0:00:54]} 30. b3 {[%clk 0:00:18]}  Rxb6 {[%clk 0:00:31]} 31. Bxb6 {[%clk 0:00:18]}  Nd7 {[%clk 0:00:23]} 32. Be3 {[%clk 0:00:17]}  Nf4 {[%clk 0:00:22]} 33. Nb4 {[%clk 0:00:15]}  Bb7 {[%clk 0:00:20]} 34. Rh1 {[%clk 0:00:14]}  Kf6 {[%clk 0:00:18]} 35. Rh7 {[%clk 0:00:13]}  Rd8 {[%clk 0:00:12]} 36. Bb5 {[%clk 0:00:14]}  Bxe4 {[%clk 0:00:09]} 37. fxe4 {[%clk 0:00:13]}  Nf8 {[%clk 0:00:09]} 38. Bxf4 {[%clk 0:00:13]}  Nxh7 {[%clk 0:00:09]} 39. Be3 {[%clk 0:00:11]}  g5 {[%clk 0:00:09]} 40. Nd5+ {[%clk 0:00:11]}  Ke6 {[%clk 0:00:08]} 41. Bxg5 {[%clk 0:00:11]}  Nxg5 {[%clk 0:00:08]} 42. Bd3 {[%clk 0:00:06]}  Nf3 {[%clk 0:00:08]} 43. Ne3 {[%clk 0:00:05]}  Nd2+ {[%clk 0:00:08]} 44. Kb2 {[%clk 0:00:06]}  Nf3 {[%clk 0:00:07]} 45. Nd5 {[%clk 0:00:06]}  Ne1 {[%clk 0:00:07]} 46. Nb4 {[%clk 0:00:04]}  Nxd3+ {[%clk 0:00:07]} 47. cxd3 {[%clk 0:00:05]}  Rd4 {[%clk 0:00:06]} 48. Kc3 {[%clk 0:00:06]}  Kd6 {[%clk 0:00:06]} 49. Nd5 {[%clk 0:00:06]}  Kc5 {[%clk 0:00:05]} 50. b4+ {[%clk 0:00:06]}  Kb5 {[%clk 0:00:05]} 51. Nc7+ {[%clk 0:00:05]}  Kc6 {[%clk 0:00:05]} 52. Ne6 {[%clk 0:00:05]}  Rd6 {[%clk 0:00:05]} 53. Nc5 {[%clk 0:00:05]}  Kb5 {[%clk 0:00:05]} 54. Nb3 {[%clk 0:00:05]}  Rc6+ {[%clk 0:00:05]} 55. Nc5 {[%clk 0:00:05]}  Rc7 {[%clk 0:00:05]} 56. Kb3 {[%clk 0:00:05]}  Rc6 {[%clk 0:00:06]} 57. Ne6 {[%clk 0:00:05]}  Rxe6 {[%clk 0:00:06]} 58. Kc3 {[%clk 0:00:05]}  Rd6 {[%clk 0:00:06]} 59. Kc2 {[%clk 0:00:02]}  Rd4 {[%clk 0:00:07]} 60. Kc3 {[%clk 0:00:03]}  Rxb4 {[%clk 0:00:08]} 61. Kd2 {[%clk 0:00:03]}  Rd4 {[%clk 0:00:09]} 62. Ke3 {[%clk 0:00:04]}  Kb4 {[%clk 0:00:09]} 63. Kf3 {[%clk 0:00:05]}  Kc3 {[%clk 0:00:10]} 64. Kg4 {[%clk 0:00:05]}  Kxd3 {[%clk 0:00:11]} 65. Kf5 {[%clk 0:00:06]}  Rxe4 {[%clk 0:00:10]} 66. Kg5 {[%clk 0:00:07]}  Kd4 {[%clk 0:00:11]} 67. Kh5 {[%clk 0:00:07]}  Re3 {[%clk 0:00:12]} 68. Kg5 {[%clk 0:00:08]}  e4 {[%clk 0:00:13]} 69. Kf4 {[%clk 0:00:08]}  Rf3+ {[%clk 0:00:14]} 70. Kg4 {[%clk 0:00:09]}  Kd3 {[%clk 0:00:14]} 71. Kh4 {[%clk 0:00:09]}  Rf1 {[%clk 0:00:15]} 72. Kg3 {[%clk 0:00:09]}  e3 {[%clk 0:00:16]} 73. Kg2 {[%clk 0:00:10]}  e2 {[%clk 0:00:17]} 74. Kh2 {[%clk 0:00:11]}  Kd2 {[%clk 0:00:18]} 75. Kh3 {[%clk 0:00:11]}  e1=Q {[%clk 0:00:17]} 76. Kg2 {[%clk 0:00:12]}  Qe2+ {[%clk 0:00:17]} 77. Kh3 {[%clk 0:00:13]}  Rf3+ {[%clk 0:00:18]} 78. Kg4 {[%clk 0:00:14]}  Qe4+ {[%clk 0:00:18]} 79. Kg5 {[%clk 0:00:15]}  Rf5+ {[%clk 0:00:19]} 80. Kg6 {[%clk 0:00:16]}  Qe6+ {[%clk 0:00:20]} 81. Kg7 {[%clk 0:00:17]}  Rf7+ {[%clk 0:00:20]} 82. Kg8 {[%clk 0:00:17]}  Qe8# {[%clk 0:00:21]} 0-1


[Site "https://www.chess.com"]

[Event "Titled Tuesday Blitz July 11 Early 2023"]
[White "Flynn, Jacob"]
[Black "Grigoryan, Meri"]
[WhiteFideId "2509393"]
[BlackFideId "13300571"]
[WhiteElo "2459"]
[BlackElo "2131"]
[Result "0-1"]
[Round "2"]
[TimeControl "180+2"]
[Date "2023.07.11"]
[WhiteClock "0:01:30"]
[BlackClock "0:01:45"]
[Board "211"]

1. d4 {[%clk 0:03:00]}  d5 {[%clk 0:02:58]} 2. c4 {[%clk 0:02:56]}  e5 {[%clk 0:02:58]} 3. dxe5 {[%clk 0:02:56]}  d4 {[%clk 0:02:58]} 4. Nf3 {[%clk 0:02:56]}  Nc6 {[%clk 0:02:59]} 5. a3 {[%clk 0:02:56]}  a5 {[%clk 0:02:59]} 6. e3 {[%clk 0:02:49]}  Bc5 {[%clk 0:02:58]} 7. exd4 {[%clk 0:02:48]}  Bxd4 {[%clk 0:02:59]} 8. Nxd4 {[%clk 0:02:47]}  Qxd4 {[%clk 0:02:57]} 9. Qxd4 {[%clk 0:02:40]}  Nxd4 {[%clk 0:02:57]} 10. Ra2 {[%clk 0:02:22]}  Bf5 {[%clk 0:02:21]} 11. Be3 {[%clk 0:02:08]}  Nc2+ {[%clk 0:02:17]} 12. Kd2 {[%clk 0:02:08]}  Nxe3 {[%clk 0:02:17]} 13. Kxe3 {[%clk 0:02:04]}  Bxb1 {[%clk 0:02:17]} 14. Ra1 {[%clk 0:02:05]}  Bf5 {[%clk 0:02:17]} 15. Be2 {[%clk 0:02:05]}  O-O-O {[%clk 0:02:16]} 16. g4 {[%clk 0:02:05]}  Be6 {[%clk 0:02:15]} 17. f4 {[%clk 0:02:05]}  g6 {[%clk 0:02:15]} 18. Rhf1 {[%clk 0:02:05]}  Ne7 {[%clk 0:02:14]} 19. b4 {[%clk 0:02:04]}  h5 {[%clk 0:02:05]} 20. h3 {[%clk 0:01:57]}  hxg4 {[%clk 0:02:05]} 21. hxg4 {[%clk 0:01:58]}  Rh3+ {[%clk 0:02:04]} 22. Rf3 {[%clk 0:01:44]}  Bxg4 {[%clk 0:02:01]} 23. Rxh3 {[%clk 0:01:44]}  Bxh3 {[%clk 0:02:01]} 24. Rh1 {[%clk 0:01:40]}  Be6 {[%clk 0:01:50]} 25. bxa5 {[%clk 0:01:37]}  Nf5+ {[%clk 0:01:49]} 26. Kf2 {[%clk 0:01:37]}  Rd2 {[%clk 0:01:48]} 27. Ke1 {[%clk 0:01:30]}  Rxe2+ {[%clk 0:01:45]} 28. Kf1 {[%clk 0:01:30]}  Ng3+ {[%clk 0:01:45]} 29. Kg1 {[%clk 0:01:30]} 0-1


[Site "https://www.chess.com"]

[Event "Titled Tuesday Blitz July 11 Early 2023"]
[White "Roque Sola, Jose Luis"]
[Black "Mmukka"]
[WhiteFideId "5120390"]
[WhiteElo "2126"]
[BlackElo "2458"]
[Result "0-1"]
[Round "2"]
[TimeControl "180+2"]
[Date "2023.07.11"]
[WhiteClock "0:00:00"]
[BlackClock "0:00:19"]
[Board "212"]

1. c4 {[%clk 0:03:00]}  Nf6 {[%clk 0:02:59]} 2. Nc3 {[%clk 0:02:56]}  g6 {[%clk 0:02:59]} 3. Nf3 {[%clk 0:02:55]}  Bg7 {[%clk 0:02:59]} 4. g3 {[%clk 0:02:55]}  O-O {[%clk 0:02:59]} 5. Bg2 {[%clk 0:02:56]}  d6 {[%clk 0:02:59]} 6. O-O {[%clk 0:02:56]}  e5 {[%clk 0:02:58]} 7. d3 {[%clk 0:02:54]}  Nc6 {[%clk 0:02:48]} 8. Rb1 {[%clk 0:02:54]}  a5 {[%clk 0:02:47]} 9. a3 {[%clk 0:02:53]}  Re8 {[%clk 0:02:47]} 10. b4 {[%clk 0:02:44]}  axb4 {[%clk 0:02:46]} 11. axb4 {[%clk 0:02:45]}  e4 {[%clk 0:02:22]} 12. Ne1 {[%clk 0:02:26]}  exd3 {[%clk 0:02:16]} 13. exd3 {[%clk 0:02:23]}  Nd4 {[%clk 0:02:16]} 14. Bb2 {[%clk 0:02:12]}  Bg4 {[%clk 0:02:10]} 15. Qd2 {[%clk 0:01:56]}  Nd7 {[%clk 0:01:34]} 16. h3 {[%clk 0:01:41]}  Ne2+ {[%clk 0:01:23]} 17. Nxe2 {[%clk 0:01:37]}  Bxe2 {[%clk 0:01:23]} 18. Bxg7 {[%clk 0:01:36]}  Kxg7 {[%clk 0:01:22]} 19. Bxb7 {[%clk 0:01:13]}  Rb8 {[%clk 0:01:21]} 20. Bg2 {[%clk 0:01:11]}  Bxf1 {[%clk 0:01:21]} 21. Kxf1 {[%clk 0:01:11]}  Qf6 {[%clk 0:01:17]} 22. Nc2 {[%clk 0:01:01]}  Ne5 {[%clk 0:01:06]} 23. Ne3 {[%clk 0:00:38]}  h5 {[%clk 0:00:56]} 24. Nd5 {[%clk 0:00:35]}  Qd8 {[%clk 0:00:55]} 25. Qc3 {[%clk 0:00:28]}  c6 {[%clk 0:00:54]} 26. Ne3 {[%clk 0:00:20]}  Qf6 {[%clk 0:00:53]} 27. f4 {[%clk 0:00:16]}  Nd7 {[%clk 0:00:52]} 28. Qxf6+ {[%clk 0:00:15]}  Nxf6 {[%clk 0:00:52]} 29. Kf2 {[%clk 0:00:16]}  Rb6 {[%clk 0:00:39]} 30. Nc2 {[%clk 0:00:12]}  d5 {[%clk 0:00:38]} 31. Nd4 {[%clk 0:00:12]}  c5 {[%clk 0:00:28]} 32. Nb5 {[%clk 0:00:10]}  cxb4 {[%clk 0:00:28]} 33. Rxb4 {[%clk 0:00:08]}  dxc4 {[%clk 0:00:27]} 34. dxc4 {[%clk 0:00:06]}  Rc8 {[%clk 0:00:24]} 35. Ra4 {[%clk 0:00:06]}  Re6 {[%clk 0:00:21]} 36. Ra7 {[%clk 0:00:00]}  Rxc4 {[%clk 0:00:19]} 0-1


[Site "https://www.chess.com"]